bitfinex/quotes_SOLUSD_20260217
["timestamp","ask_amount","ask_price","bid_price","bid_amount"]
[1771334592531,0.48235424,85.131,85.111,20.60596393]
[1771334592737,12.22802176,85.138,85.112,0.48596393]
[1771334593124,11.74620765,85.134,85.112,0.48596393]
[1771334593529,0.48235424,85.129,85.111,20.12]
[1771334594134,0.48235424,85.129,85.097,0.48596393]
[1771334594339,0.48235424,85.129,85.096,20.12]
[1771334594527,0.48235424,85.129,85.1,2.3973462]
[1771334595632,0.47668001,85.127,85.1,2.3973462]
[1771334596746,0.47668001,85.125,85.086,20.1]
[1771334596949,0.47668001,85.119,85.087,11.75267667]
[1771334597825,0.47668001,85.119,85.09,2.3973462]
[1771334598032,0.47668001,85.119,85.09,2.38988507]
[1771334598748,0.47668001,85.117,85.09,2.85862944]
[1771334598926,0.47668001,85.117,85.091,0.46874437]
[1771334599643,0.47668001,85.117,85.09,2.38988507]
[1771334600354,0.47668001,85.117,85.083,0.46874437]
[1771334600355,0.47668001,85.117,85.083,20.54874437]
[1771334600536,0.47668001,85.117,85.09,2.38988507]
[1771334600850,0.47668001,85.115,85.09,2.38988507]
[1771334601644,0.47668001,85.115,85.091,0.46874437]
[1771334602157,0.47668001,85.115,85.09,2.38988507]
[1771334602354,0.47668001,85.115,85.09,2.85862944]
[1771334602540,0.47668001,85.115,85.09,2.38988507]
[1771334603131,0.47668001,85.113,85.083,20.08]
[1771334603654,0.47668001,85.109,85.083,20.08]
[1771334604856,0.47668001,85.109,85.08,2.38988507]
[1771334605852,0.47668001,85.107,85.08,2.38988507]
[1771334606054,0.47668001,85.107,85.071,20.06]
[1771334606757,0.47668001,85.107,85.071,20.52874437]
[1771334606939,0.47668001,85.107,85.072,0.46874437]
[1771334607660,0.47668001,85.099,85.066,0.46874437]
[1771334607848,0.47668001,85.097,85.066,20.52874437]
[1771334608048,0.47668001,85.097,85.07,2.38988507]
[1771334608247,0.47668001,85.097,85.066,0.46874437]
[1771334608559,0.47668001,85.097,85.071,0.46874437]
[1771334608741,0.47668001,85.098,85.071,0.46874437]
[1771334609056,0.47668001,85.104,85.071,0.46874437]
[1771334610364,0.47668001,85.102,85.071,0.46874437]
[1771334611863,0.47668001,85.1,85.071,0.46874437]
[1771334612058,0.47668001,85.1,85.073,0.46874437]
[1771334613256,12.22769941,85.099,85.073,0.46874437]
[1771334613755,12.22769941,85.099,85.072,11.75474891]
[1771334613756,0.47668001,85.099,85.075,0.46874437]
[1771334614465,0.47668001,85.119,85.081,0.46874437]
[1771334615140,11.74839634,85.118,85.081,0.46874437]
[1771334615344,0.47668001,85.117,85.083,0.46874437]
[1771334618141,0.47668001,85.115,85.083,0.46874437]
[1771334619847,0.47668001,85.115,85.085,0.46874437]
[1771334620244,0.47668001,85.113,85.082,20.50874437]
[1771334620447,0.47668001,85.109,85.082,20.50874437]
[1771334620650,0.47668001,85.109,84.964,26.35631786]
[1771334620651,0.47668001,85.109,85.071,20.02]
[1771334620960,0.47668001,85.109,85.07,14.14480487]
[1771334621367,0.47668001,85.089,85.066,0.46874437]
[1771334622163,0.47668001,85.089,85.071,0.46874437]
[1771334622353,0.47668001,85.099,85.071,0.46874437]
[1771334623669,0.47668001,85.099,85.072,0.46874437]
[1771334624555,0.46175096,85.097,85.072,0.46874437]
[1771334627275,17.6,85.119,85.071,11.75488709]
[1771334627276,0.265054,85.137,85.071,0.46836001]
[1771334627453,103.1,85.169,85.071,0.46836001]
[1771334627454,0.5,85.194,85.101,0.46175096]
[1771334627657,0.5,85.181,85.15,2.38988507]
[1771334627869,0.5,85.219,85.16,2.38988507]
[1771334628058,0.5,85.219,85.18,2.38988507]
[1771334628381,0.5,85.209,85.18,2.38988507]
[1771334629462,0.1,85.22,85.181,41.08897523]
[1771334629463,0.5,85.219,85.181,41.08897523]
[1771334629656,0.5,85.219,85.19,2.38988507]
[1771334630180,0.5,85.219,85.2,2.38988507]
[1771334631660,0.1,85.22,85.2,2.38988507]
[1771334632773,0.6,85.22,85.2,2.38988507]
[1771334632971,17.15520119,85.268,85.211,0.4]
[1771334633158,2.38988507,85.26,85.22,2.38988507]
[1771334633354,11.72896702,85.259,85.22,2.38988507]
[1771334633569,28.88296935,85.268,85.231,0.4]
[1771334634177,17.15520119,85.268,85.24,2.38988507]
[1771334634675,2.38988507,85.26,85.223,0.4]
[1771334634883,0.45056033,85.266,85.223,0.4]
[1771334635078,0.45056033,85.259,85.223,0.4]
[1771334635661,52.92,85.59,85.356,0.45471381]
[1771334635876,52.92,85.59,85.338,0.45471381]
[1771334635877,2.38988507,85.37,85.338,0.45471381]
[1771334636068,0.45056033,85.374,85.267,6.12823983]
[1771334636271,2.38988507,85.34,85.267,6.12823983]
[1771334636469,0.45056033,85.349,85.291,5.36086188]
[1771334636671,0.45056033,85.359,85.32,2.38988507]
[1771334636961,0.45056033,85.386,85.34,2.38988507]
[1771334637163,0.45056033,85.386,85.33,2.38988507]
[1771334637475,2.38988507,85.37,85.33,2.38988507]
[1771334637663,0.45056033,85.379,85.331,11.71907044]
[1771334637985,0.45056033,85.379,85.34,7.06966895]
[1771334638173,0.45056033,85.369,85.331,11.71907044]
[1771334638371,11.71248199,85.379,85.315,29.30294353]
[1771334638372,0.45056033,85.359,85.324,11.71989622]
[1771334638771,18.44,85.358,85.324,11.71989622]
[1771334638972,18.89056033,85.358,85.324,11.71989622]
[1771334639274,7.52022928,85.35,85.318,0.29584652]
[1771334639475,7.06966895,85.34,85.317,11.72086923]
[1771334639882,7.06966895,85.34,85.307,11.72236744]
[1771334640264,7.52022928,85.34,85.307,11.72236744]
[1771334640583,0.45056033,85.349,85.31,7.06966895]
[1771334640784,7.06966895,85.32,85.283,0.29584652]
[1771334641096,7.06966895,85.32,85.285,0.29584652]
[1771334641767,7.06966895,85.31,85.272,0.29584652]
[1771334642084,7.06966895,85.3,85.264,0.29584652]
[1771334642666,14.13056033,85.309,85.264,0.29584652]
[1771334642872,7.06966895,85.3,85.264,0.29584652]
[1771334643199,14.13056033,85.309,85.271,0.29584652]
[1771334643401,0.45056033,85.309,85.271,0.29584652]
[1771334643689,18.36,85.308,85.271,0.29584652]
[1771334643892,18.36,85.307,85.273,0.29584652]
[1771334644782,18.34,85.306,85.273,0.29584652]
[1771334645995,17.72689475,85.306,85.275,0.29584652]
[1771334646293,18.32,85.305,85.275,0.29584652]
[1771334646486,0.45056033,85.309,85.275,0.29584652]
[1771334646688,18.32,85.304,85.28,7.06966895]
[1771334647198,0.45056033,85.329,85.291,0.29584652]
[1771334647376,0.5,85.327,85.291,0.29584652]
[1771334647576,7.06966895,85.32,85.291,0.29584652]
[1771334648999,18.28,85.319,85.292,11.72442902]
[1771334650805,7.06966895,85.31,85.281,11.72594129]
[1771334650982,18.24,85.309,85.281,11.72594129]
[1771334652402,18.24,85.308,85.281,11.72594129]
[1771334653888,18.74,85.308,85.281,11.72594129]
[1771334654217,18.24,85.308,85.281,11.72594129]
[1771334654705,18.24,85.308,85.27,7.06966895]
[1771334654904,0.5,85.309,85.27,7.06966895]
[1771334655107,18.2,85.307,85.27,7.06966895]
[1771334655301,18.18,85.306,85.27,7.06966895]
[1771334655507,0.5,85.305,85.27,7.06966895]
[1771334657210,0.5,85.305,85.271,11.72731643]
[1771334657589,0.5,85.305,85.272,0.46559758]
[1771334657590,0.002579,85.305,85.272,0.46559758]
[1771334658210,18.16,85.304,85.274,0.46559758]
[1771334659207,18.12,85.303,85.274,0.46559758]
[1771334659505,52.82,85.33,85.274,0.46559758]
[1771334659707,0.49705229,85.359,85.311,0.46559758]
[1771334659912,52.82,85.378,85.311,0.46559758]
[1771334659913,0.49705229,85.349,85.311,0.46559758]
[1771334660093,0.49705229,85.339,85.311,0.46559758]
[1771334660292,0.49705229,85.339,85.312,11.72168042]
[1771334661721,18.1,85.338,85.312,11.72168042]
[1771334662598,18.59705229,85.338,85.312,11.72168042]
[1771334663119,0.49705229,85.348,85.312,12.187278]
[1771334663305,0.49705229,85.346,85.312,12.187278]
[1771334663610,18.08,85.345,85.312,12.187278]
[1771334663812,0.49705229,85.344,85.312,11.72168042]
[1771334664011,0.49705229,85.339,85.307,11.72229285]
[1771334665097,0.49705229,85.339,85.31,7.08114836]
[1771334665601,0.49705229,85.347,85.32,7.54674594]
[1771334665787,18.06,85.346,85.32,7.54674594]
[1771334666108,18.55705229,85.346,85.32,0.46559758]
[1771334666426,18.04,85.345,85.32,0.46559758]
[1771334666593,0.49705229,85.358,85.322,0.46559758]
[1771334666792,0.49705229,85.356,85.322,0.46559758]
[1771334667508,0.49705229,85.354,85.322,0.46559758]
[1771334668312,18.04,85.353,85.322,0.46559758]
[1771334668507,0.49705229,85.354,85.32,7.08114836]
[1771334668508,0.49705229,85.354,85.324,0.46559758]
[1771334668713,18.04,85.353,85.324,0.46559758]
[1771334669217,18.04,85.352,85.33,7.08114836]
[1771334669394,18.04,85.352,85.331,0.46559758]
[1771334670327,52.82,85.379,85.323,41.02059232]
[1771334670328,0.49705229,85.372,85.341,0.46559758]
[1771334670629,0.49705229,85.372,85.323,99.62143851]
[1771334670630,0.49705229,85.369,85.342,10.04435814]
[1771334670794,0.49705229,85.367,85.342,10.04435814]
[1771334671914,0.49705229,85.367,85.333,0.46559758]
[1771334672103,18.02,85.366,85.34,7.08114836]
[1771334672723,18.02,85.366,85.333,41.48138279]
[1771334672724,18.02,85.365,85.341,11.71769723]
[1771334672923,0.49705229,85.364,85.341,11.71769723]
[1771334673228,0.49705229,85.359,85.323,29.30029383]
[1771334673421,0.49705229,85.357,85.323,29.30029383]
[1771334673615,0.49705229,85.357,85.33,7.08114836]
[1771334673814,0.49705229,85.355,85.33,7.54674594]
[1771334676041,0.49705229,85.353,85.326,11.71971752]
[1771334676249,0.49705229,85.349,85.322,11.72029097]
[1771334676417,0.49705229,85.349,85.318,11.72083588]
[1771334677533,0.49705229,85.347,85.318,11.72083588]
[1771334677918,0.49705229,85.339,85.298,0.46559758]
[1771334678118,0.49705229,85.337,85.301,11.72308342]
[1771334678324,7.08114836,85.33,85.301,11.72308342]
[1771334678536,0.49705229,85.329,85.301,11.72308342]
[1771334680616,0.49705229,85.329,85.293,29.31069977]
[1771334680617,52.8,85.339,85.302,0.46559758]
[1771334680938,0.49705229,85.337,85.302,0.46559758]
[1771334681438,0.49705229,85.329,85.294,0.46559758]
[1771334683038,17.98,85.328,85.296,0.46559758]
[1771334683215,18.47705229,85.328,85.296,0.46559758]
[1771334683420,0.49705229,85.335,85.301,0.46559758]
[1771334683720,0.49705229,85.333,85.301,0.46559758]
[1771334683932,0.49705229,85.329,85.301,0.46559758]
[1771334684139,0.49705229,85.327,85.301,0.46559758]
[1771334684831,17.98,85.326,85.301,0.46559758]
[1771334685139,17.98,85.326,85.303,0.47606522]
[1771334685525,0.46551849,85.381,85.321,0.47606522]
[1771334685742,0.46551849,85.359,85.321,0.47606522]
[1771334686242,0.46551849,85.357,85.321,0.47606522]
[1771334686822,2.37656737,85.36,85.321,0.47606522]
[1771334686823,0.46551849,85.355,85.321,0.47606522]
[1771334687240,17.96,85.354,85.331,0.47606522]
[1771334687947,0.46551849,85.365,85.331,0.47606522]
[1771334688148,0.46551849,85.359,85.331,0.47606522]
[1771334688328,0.46551849,85.359,85.323,0.47606522]
[1771334688525,22.4,85.527,85.351,0.47606522]
[1771334688724,0.1,85.44,85.385,0.47606522]
[1771334688943,12.94,85.439,85.401,0.47606522]
[1771334689150,0.1,85.44,85.403,0.47606522]
[1771334689324,0.1,85.44,85.41,0.47606522]
[1771334689529,2.37656737,85.42,85.358,0.47606522]
[1771334689730,12.94,85.419,85.381,0.47606522]
[1771334689931,12.91276844,85.419,85.381,0.47606522]
[1771334690234,13.48,85.418,85.381,0.47606522]
[1771334690542,0.56551849,85.44,85.411,0.47606522]
[1771334690731,17.94,85.439,85.411,0.47606522]
[1771334691329,0.1,85.44,85.421,0.46293949]
[1771334691531,2.37656737,85.44,85.411,0.46293949]
[1771334691838,17.92,85.439,85.411,0.46293949]
[1771334692029,17.92,85.439,85.412,0.46293949]
[1771334692434,17.92,85.438,85.412,0.46293949]
[1771334692845,0.45804696,85.436,85.405,11.70886096]
[1771334693144,0.45804696,85.434,85.405,11.70886096]
[1771334693347,0.45804696,85.429,85.394,0.46293949]
[1771334693528,0.45804696,85.429,85.395,11.71028748]
[1771334693732,0.45804696,85.427,85.395,11.71028748]
[1771334694643,7.0585459,85.42,85.395,11.71028748]
[1771334695344,0.45804696,85.419,85.395,11.71028748]
[1771334695542,0.45804696,85.419,85.387,12.17432412]
[1771334695746,0.45804696,85.419,85.388,0.46293949]
[1771334695929,0.45804696,85.419,85.39,7.0585459]
[1771334697046,0.45804696,85.427,85.4,7.0585459]
[1771334697241,17.86,85.426,85.399,0.46293949]
[1771334697440,0.45804696,85.425,85.399,0.46293949]
[1771334697633,17.86,85.424,85.399,0.46293949]
[1771334698842,17.24763865,85.424,85.399,0.46293949]
[1771334699248,17.24763865,85.424,85.4,11.70960187]
[1771334699551,0.45804696,85.439,85.401,0.46293949]
[1771334699852,17.84,85.438,85.401,0.46293949]
[1771334700149,18.29804696,85.437,85.401,0.46293949]
[1771334700338,3.49,86.721,85.411,0.46293949]
[1771334700339,0.45804696,85.456,85.411,0.46293949]
[1771334700646,0.45804696,85.468,85.431,0.46293949]
[1771334700847,0.45804696,85.466,85.422,0.46293949]
[1771334701142,0.45804696,85.466,85.4,48.04215245]
[1771334701143,0.45804696,85.439,85.402,0.46293949]
[1771334701451,0.45804696,85.437,85.402,0.46293949]
[1771334702034,17.82,85.436,85.41,7.52148539]
[1771334702231,17.82,85.436,85.411,0.46293949]
[1771334702433,0.45804696,85.445,85.411,0.46293949]
[1771334702784,17.8,85.444,85.431,0.46293949]
[1771334703066,0.5,85.479,85.432,11.70521584]
[1771334703373,17.8,85.478,85.46,7.0585459]
[1771334703659,0.265054,85.48,85.45,7.0585459]
[1771334703660,17.8,85.477,85.45,7.0585459]
[1771334703869,0.5,85.476,85.45,7.0585459]
[1771334704244,17.8,85.475,85.45,7.0585459]
[1771334704876,18.3,85.475,85.45,7.0585459]
[1771334705065,0.265054,85.48,85.451,11.70261319]
[1771334705273,0.265054,85.48,85.42,46.82709905]
[1771334705274,0.5,85.469,85.43,7.0585459]
[1771334705448,0.5,85.469,85.381,46.84845434]
[1771334705449,0.5,85.439,85.361,46.8597057]
[1771334705652,0.5,85.429,85.39,7.0585459]
[1771334705865,0.5,85.427,85.39,7.0585459]
[1771334706067,0.5,85.419,85.38,7.0585459]
[1771334706275,0.5,85.409,85.38,7.0585459]
[1771334706651,13.12,85.408,85.38,7.0585459]
[1771334707584,0.5,85.407,85.37,7.0585459]
[1771334707864,0.5,85.399,85.37,7.0585459]
[1771334708064,0.5,85.399,85.363,41.0013706]
[1771334709093,17.76,85.398,85.363,41.0013706]
[1771334709958,0.5,85.396,85.363,11.71467731]
[1771334711256,0.5,85.394,85.363,11.71467731]
[1771334711653,0.5,85.389,85.351,11.71632435]
[1771334711968,0.5,85.369,85.341,11.71769723]
[1771334712764,0.5,85.369,85.331,11.71907044]
[1771334713063,17.74,85.368,85.331,11.71907044]
[1771334713269,0.5,85.369,85.331,11.71907044]
[1771334713477,0.5,85.366,85.331,41.01674654]
[1771334713875,0.5,85.349,85.283,46.90221643]
[1771334714174,7.5585459,85.34,85.3,7.0585459]
[1771334714357,0.5,85.339,85.3,7.0585459]
[1771334714877,0.5,85.329,85.29,7.0585459]
[1771334715066,0.5,85.327,85.29,7.0585459]
[1771334715372,0.5,85.338,85.3,7.0585459]
[1771334715579,17.72,85.337,85.3,7.0585459]
[1771334715777,0.5,85.319,85.282,41.0403133]
[1771334715975,18.22,85.318,85.282,41.0403133]
[1771334716172,0.5,85.317,85.282,11.7258038]
[1771334716482,0.5,85.309,85.282,11.7258038]
[1771334716867,17.7,85.308,85.282,11.7258038]
[1771334717267,17.7,85.308,85.271,11.72731643]
[1771334717268,0.5,85.307,85.271,11.72731643]
[1771334717576,0.5,85.299,85.271,11.72731643]
[1771334718163,7.0585459,85.3,85.271,11.72731643]
[1771334718164,0.5,85.297,85.271,11.72731643]
[1771334718387,17.7,85.296,85.271,11.72731643]
[1771334718991,0.5,85.295,85.261,11.72869189]
[1771334719282,18.2,85.294,85.261,11.72869189]
[1771334720283,17.7,85.293,85.28,7.08267397]
[1771334720482,17.7,85.292,85.27,7.08267397]
[1771334721265,0.5,85.308,85.27,7.08267397]
[1771334721463,182.8859668,85.762,85.261,41.05042163]
[1771334721464,0.5,85.335,85.3,7.08267397]
[1771334721683,17.68,85.334,85.31,7.08267397]
[1771334722166,0.5,85.335,85.31,7.08267397]
[1771334722386,17.68,85.333,85.311,11.72181781]
[1771334722885,0.5,85.335,85.311,11.72181781]
[1771334723184,17.68,85.332,85.311,11.72181781]
[1771334723391,0.5,85.347,85.311,41.02636235]
[1771334723591,0.5,85.345,85.311,41.02636235]
[1771334723880,0.5,85.354,85.32,7.08267397]
[1771334724081,17.66,85.353,85.32,7.08267397]
[1771334724288,17.66,85.353,85.321,11.72044397]
[1771334724479,0.5,85.354,85.321,11.72044397]
[1771334724869,17.66,85.353,85.321,11.72044397]
[1771334725185,0.5,85.349,85.32,7.08267397]
[1771334725576,7.08267397,85.37,85.33,7.08267397]
[1771334725787,29.27724285,85.391,85.32,7.08267397]
[1771334725788,7.08267397,85.36,85.32,7.08267397]
[1771334725973,17.66,85.359,85.32,7.08267397]
[1771334726178,7.08267397,85.35,85.308,0.46916438]
[1771334726378,7.08267397,85.35,85.31,7.08267397]
[1771334726766,18.79926545,85.35,85.311,11.72181781]
[1771334727389,17.64,85.349,85.311,11.72181781]
[1771334727570,0.48485153,85.348,85.311,11.72181781]
[1771334728172,0.48485153,85.339,85.306,11.72245797]
[1771334728878,0.48485153,85.339,85.306,0.46916438]
[1771334729271,17.64,85.338,85.306,0.46916438]
[1771334729585,18.12485153,85.338,85.306,0.46916438]
[1771334729784,0.48485153,85.337,85.306,0.46916438]
[1771334730083,0.48485153,85.337,85.301,11.72319199]
[1771334730989,0.48485153,85.329,85.29,7.08267397]
[1771334731190,0.48485153,85.327,85.291,11.72456648]
[1771334731489,0.48485153,85.325,85.291,11.72456648]
[1771334731989,41.0143433,85.336,85.282,0.46916438]
[1771334731990,0.48485153,85.319,85.282,0.46916438]
[1771334733480,0.48485153,85.319,85.283,11.72566631]
[1771334733682,11.72085609,85.318,85.284,0.46916438]
[1771334734020,0.48485153,85.317,85.284,0.46916438]
[1771334734292,0.48485153,85.317,85.283,11.72566631]
[1771334734490,0.48485153,85.309,85.283,11.72566631]
[1771334734715,0.48485153,85.307,85.278,11.72627796]
[1771334735079,0.48485153,85.299,85.273,11.72691391]
[1771334735309,17.6,85.298,85.273,11.72691391]
[1771334735682,18.08485153,85.298,85.268,11.72772904]
[1771334735877,0.48485153,85.297,85.268,11.72772904]
[1771334736078,0.48485153,85.296,85.268,11.72772904]
[1771334736583,7.08267397,85.29,85.268,11.72772904]
[1771334736914,11.72178241,85.312,85.269,0.46916438]
[1771334737200,17.58,85.311,85.28,7.08267397]
[1771334737376,17.58,85.31,85.28,7.08267397]
[1771334738103,17.58,85.31,85.25,7.08267397]
[1771334738104,0.5,85.309,85.271,11.72731643]
[1771334738310,0.5,85.299,85.271,11.72731643]
[1771334738686,0.5,85.299,85.258,29.32251438]
[1771334738883,0.5,85.297,85.259,11.72896702]
[1771334739595,0.5,85.289,85.259,11.72896702]
[1771334739803,0.5,85.287,85.259,11.72896702]
[1771334739979,0.5,85.287,85.251,11.73006768]
[1771334740185,0.5,85.287,85.251,41.05523688]
[1771334742301,0.5,85.285,85.251,11.73006768]
[1771334742509,18.06,85.284,85.251,11.73006768]
[1771334743500,18.06,85.284,85.251,41.05523688]
[1771334743710,0.5,85.283,85.251,41.05523688]
[1771334743926,0.5,85.279,85.241,11.73144378]
[1771334744126,0.5,85.277,85.241,11.73144378]
[1771334744307,0.5,85.277,85.241,41.06005325]
[1771334744706,0.5,85.297,85.25,7.08267397]
[1771334744907,0.5,85.289,85.25,7.08267397]
[1771334745303,17.54,85.288,85.25,7.08267397]
[1771334745502,18.04,85.288,85.25,7.08267397]
[1771334745910,0.5,85.287,85.251,11.73006768]
[1771334746115,7.08267397,85.28,85.251,11.73006768]
[1771334746317,0.5,85.279,85.251,11.73006768]
[1771334746711,0.5,85.277,85.251,11.73006768]
[1771334747219,0.5,85.269,85.241,11.73144378]
[1771334747802,0.5,85.269,85.23,36.41489879]
[1771334747803,0.5,85.259,85.221,11.73419697]
[1771334747999,0.5,85.257,85.221,11.73419697]
[1771334748431,0.5,85.257,85.221,41.06968939]
[1771334749019,0.5,85.249,85.221,11.73419697]
[1771334749329,0.5,85.247,85.221,11.73419697]
[1771334749720,17.52,85.246,85.221,11.73419697]
[1771334750029,17.52,85.246,85.211,11.73557404]
[1771334750727,0.5,85.247,85.211,11.73557404]
[1771334750905,17.5,85.246,85.211,11.73557404]
[1771334751630,7.08267397,85.25,85.211,11.73557404]
[1771334751631,0.5,85.244,85.211,41.07450915]
[1771334752116,0.5,85.229,85.211,11.73557404]
[1771334752513,0.5,85.229,85.21,0.2]
[1771334752710,0.5,85.229,85.198,11.73731264]
[1771334752910,0.46364411,85.227,85.184,29.34820889]
[1771334753116,0.46364411,85.227,85.191,0.2]
[1771334753525,0.46364411,85.225,85.191,0.2]
[1771334754105,0.46364411,85.225,85.193,0.2]
[1771334754305,0.46364411,85.224,85.193,0.2]
[1771334754918,0.46364411,85.219,85.192,11.73819137]
[1771334755113,0.46364411,85.217,85.192,11.73819137]
[1771334755636,0.46364411,85.209,85.18,0.2]
[1771334755812,0.46364411,85.219,85.191,0.2]
[1771334756013,0.46364411,85.229,85.192,41.08366981]
[1771334756328,17.46,85.228,85.201,0.2]
[1771334756725,0.46364411,85.227,85.192,41.08366981]
[1771334756924,0.46364411,85.227,85.193,0.2]
[1771334757334,0.46364411,85.225,85.193,0.2]
[1771334757634,0.46364411,85.225,85.192,41.08366981]
[1771334757635,0.46364411,85.219,85.192,11.73819137]
[1771334758133,0.46364411,85.217,85.188,11.73873443]
[1771334758436,0.46364411,85.209,85.188,11.73873443]
[1771334760334,0.46364411,85.219,85.183,0.2]
[1771334760542,17.46,85.214,85.183,0.2]
[1771334761623,17.92364411,85.214,85.183,0.2]
[1771334761837,0.46364411,85.214,85.183,0.2]
[1771334762239,0.46364411,85.214,85.184,41.08752817]
[1771334762719,0.46364411,85.214,85.185,0.2]
[1771334764219,0.46364411,85.214,85.186,11.73901814]
[1771334764421,0.46364411,85.209,85.186,11.73901814]
[1771334764921,0.46364411,85.209,85.186,41.08656351]
[1771334765721,0.46364411,85.209,85.18,7.28267397]
[1771334765722,7.08267397,85.2,85.18,0.2]
[1771334765922,0.46364411,85.199,85.181,11.73970721]
[1771334766127,17.44,85.211,85.182,0.2]
[1771334766431,17.44,85.211,85.184,0.2]
[1771334768121,7.08267397,85.21,85.184,0.2]
[1771334768320,0.46364411,85.199,85.18,0.2]
[1771334768546,0.46364411,85.199,85.181,11.73970721]
[1771334769352,17.44,85.209,85.182,0.2]
[1771334770633,0.46364411,85.208,85.183,11.73943157]
[1771334773535,0.46364411,85.208,85.183,11.93943157]
[1771334775151,0.46364411,85.208,85.183,11.73943157]
[1771334778251,0.45847833,85.207,85.183,11.73943157]
[1771334781944,0.45847833,85.205,85.183,11.73943157]
[1771334782666,0.45847833,85.199,85.18,0.2]
[1771334783167,0.45847833,85.199,85.181,11.73970721]
[1771334783349,0.45847833,85.199,85.18,0.2]
[1771334783551,0.45847833,85.199,85.18,11.93976954]
[1771334786179,0.45847833,85.198,85.18,11.93976954]
[1771334786960,0.45847833,85.198,85.176,11.74027294]
[1771334787269,17.48,85.2,85.181,0.4]
[1771334788574,17.48,85.2,85.182,12.13956939]
[1771334788777,17.48,85.2,85.183,0.4]
[1771334790675,0.45847833,85.207,85.184,11.73929376]
[1771334790850,0.45847833,85.207,85.185,0.4]
[1771334791046,0.45847833,85.219,85.185,0.4]
[1771334792973,0.45847833,85.217,85.187,0.4]
[1771334795673,0.45847833,85.209,85.188,11.73874254]
[1771334796776,0.45847833,85.209,85.183,0.4]
[1771334797080,17.48,85.22,85.169,0.4]
[1771334797081,0.45847833,85.199,85.169,0.4]
[1771334797263,0.45847833,85.199,85.171,11.74108558]
[1771334797469,0.45847833,85.199,85.172,0.4]
[1771334797777,0.45847833,85.199,85.171,11.74108558]
[1771334797973,0.45847833,85.199,85.172,0.4]
[1771334801654,0.45847833,85.199,85.173,11.74080988]
[1771334803271,0.45847833,85.199,85.173,0.4]
[1771334804879,2.3853077,85.2,85.175,0.4]
[1771334805483,0.49207943,85.199,85.165,0.4]
[1771334805692,0.49207943,85.189,85.166,11.74177488]
[1771334809281,0.49207943,85.189,85.16,0.4]
[1771334811188,0.49207943,85.189,85.161,11.74246427]
[1771334811376,0.49207943,85.189,85.162,0.4]
[1771334812387,0.5,85.219,85.18,2.3853077]
[1771334813173,0.5,85.209,85.181,11.73970721]
[1771334813500,0.5,85.208,85.181,11.73970721]
[1771334813672,0.5,85.199,85.169,11.74136129]
[1771334813865,0.5,85.199,85.169,41.09476452]
[1771334814174,2.3853077,85.22,85.17,2.3853077]
[1771334814373,0.5,85.219,85.18,2.3853077]
[1771334814675,0.5,85.219,85.171,19.8]
[1771334815787,0.5,85.217,85.172,41.09331704]
[1771334818573,0.5,85.215,85.18,2.3853077]
[1771334820388,0.5,85.22,85.19,2.3853077]
[1771334821104,0.5,85.209,85.181,11.73970721]
[1771334821473,0.5,85.209,85.181,41.08897523]
[1771334821896,0.5,85.218,85.181,41.08897523]
[1771334822796,0.5,85.218,85.181,11.73970721]
[1771334823005,0.5,85.208,85.175,11.74053419]
[1771334823203,0.5,85.199,85.175,11.74053419]
[1771334823708,0.5,85.199,85.169,11.74136129]
[1771334825306,0.5,85.199,85.151,41.10345151]
[1771334825615,17.48,85.206,85.17,2.3853077]
[1771334825790,0.5,85.205,85.17,2.3853077]
[1771334826312,0.5,85.205,85.165,19.82]
[1771334826709,0.5,85.205,85.17,2.3853077]
[1771334827794,0.5,85.205,85.171,11.74108558]
[1771334828402,0.5,85.205,85.171,41.09379953]
[1771334828592,12.23653819,85.204,85.171,41.09379953]
[1771334828794,0.5,85.204,85.171,41.09379953]
[1771334831619,0.5,85.202,85.171,11.74108558]
[1771334831993,46.81620068,85.219,85.165,19.82]
[1771334831994,2.3853077,85.2,85.166,11.74177488]
[1771334832194,0.5,85.199,85.166,41.09621209]
[1771334832398,46.92379423,85.245,85.166,41.09621209]
[1771334832399,0.5,85.214,85.18,2.3853077]
[1771334832817,0.5,85.214,85.17,2.3853077]
[1771334833214,0.5,85.214,85.18,2.3853077]
[1771334835223,0.5,85.214,85.181,11.73970721]